fUST/lending_fUST_20251218
["ID","MTS","AMOUNT","RATE_DAILY","PERIOD"]
[398967793,1766032238596,-500.0,0.00031084,2]
[398967794,1766032238605,-500.0,0.00031084,2]
[398967795,1766032238615,-500.0,0.00031084,2]
[398967796,1766032238624,-500.0,0.00031085,2]
[398967797,1766032238634,-500.0,0.00031085,2]
[398967798,1766032238643,-500.0,0.00031085,2]
[398967799,1766032238652,-500.0,0.00031085,2]
[398967800,1766032238662,-402.65827498,0.00031085,2]
[398967801,1766032238671,-560.27627962,0.00031085,2]
[398967802,1766032238681,-500.0,0.00031085,2]
[398967803,1766032238690,-500.0,0.00031085,2]
[398967804,1766032238699,-500.0,0.00031085,2]
[398967805,1766032238708,-500.0,0.00031085,2]
[398967806,1766032238717,-500.0,0.00031085,2]
[398967807,1766032238727,-500.0,0.00031085,2]
[398967808,1766032238736,-454.04911258,0.00031085,2]
[398967809,1766032238746,-500.0,0.00031085,2]
[398967810,1766032238755,-500.0,0.00031085,2]
[398967811,1766032238765,-500.0,0.00031085,2]
[398967812,1766032238774,-500.0,0.00031085,2]
[398967813,1766032238783,-500.0,0.00031085,2]
[398967814,1766032238793,-500.0,0.00031085,2]
[398967815,1766032238802,-500.0,0.00031085,2]
[398967816,1766032238811,-34128.35914449,0.00031086,2]
[398967817,1766032238819,-500.0,0.00031101,2]
[398967818,1766032238828,-1131.27267225,0.0003112,2]
[398967819,1766032238837,-500.0,0.00031375,2]
[398967820,1766032238847,-291.78649388,0.00031649,2]
[398967821,1766032238856,-600.0,0.00031706,30]
[398967822,1766032238865,-373.332,0.00032162,31]
[398967823,1766032238874,-395.62251314,0.0003259,2]
[398967824,1766032238883,-167.05208944,0.00032877,7]
[398967825,1766032238893,-25762.34434902,0.00033,2]
[398967826,1766032238902,-720.0,0.00034876,30]
[398967827,1766032238911,-204.65246726,0.00035,2]
[398967828,1766032238921,-152.0,0.00035,120]
[398967829,1766032238930,-734.60177841,0.00035,20]
[398967830,1766032238940,-169.31481386,0.00035158,2]
[398967831,1766032238950,-21095.5777106,0.00035262,2]
[398967832,1766032238959,-160.0,0.00035283,2]
[398967833,1766032238969,-164.35357873,0.00035616,7]
[398967834,1766032238978,-539.90816309,0.00035797,2]
[398967835,1766032238987,-260.0,0.00035831,2]
[398967836,1766032238997,-1000.0,0.00035844,30]
[398967837,1766032239006,-168.050382,0.00036379,2]
[398967838,1766032239016,-152.0,0.000367,120]
[398967839,1766032239025,-2000.0,0.00037789,10]
[398967840,1766032239034,-2000.0,0.00037797,10]
[398967841,1766032239043,-2000.0,0.00037806,10]
[398967842,1766032239053,-2000.0,0.00037815,10]
[398967843,1766032239062,-2000.0,0.00037824,10]
[398967844,1766032239072,-2000.0,0.00037833,10]
[398967845,1766032239081,-2000.0,0.00037841,10]
[398967846,1766032239091,-2000.0,0.0003785,10]
[398967847,1766032239100,-2000.0,0.00037859,10]
[398967848,1766032239109,-2000.0,0.00037868,10]
[398967849,1766032239118,-2000.0,0.00037877,10]
[398967850,1766032239127,-2000.0,0.00037885,10]
[398967851,1766032239137,-2000.0,0.00037894,10]
[398967852,1766032239147,-2000.0,0.00037903,10]
[398967853,1766032239156,-2000.0,0.00037912,10]
[398967854,1766032239165,-2000.0,0.00037921,10]
[398967855,1766032239175,-2000.0,0.00037929,10]
[398967856,1766032239184,-2000.0,0.00037938,10]
[398967857,1766032239193,-2000.0,0.00037938,10]
[398967858,1766032239202,-2000.0,0.00037947,10]
[398967859,1766032239211,-2000.0,0.00037947,10]
[398967860,1766032239220,-2000.0,0.00037956,10]
[398967861,1766032239229,-2000.0,0.00037956,10]
[398967862,1766032239239,-2000.0,0.00037965,10]
[398967863,1766032239248,-2000.0,0.00037965,10]
[398967864,1766032239256,-2000.0,0.00037973,10]
[398967865,1766032239265,-2000.0,0.00037973,10]
[398967866,1766032239275,-2000.0,0.00037982,10]
[398967867,1766032239284,-2000.0,0.00037982,10]
[398967868,1766032239292,-2000.0,0.00037991,10]
[398967869,1766032239302,-2000.0,0.00037991,10]
[398967870,1766032239312,-20000.0,0.00038,30]
[398967871,1766032239324,-864.0,0.00038364,60]
[398967872,1766032239334,-152.0,0.000384,120]
[398967873,1766032239343,-18735.90802337,0.0003861,4]
[398967874,1766032239353,-795.65694094,0.00039,120]
[398967875,1766032239362,-2000.0,0.00039115,5]
[398967876,1766032239371,-500.0,0.00039158,120]
[398967877,1766032239381,-500.0,0.00039158,10]
[398967878,1766032239390,-500.0,0.00039158,120]
[398967879,1766032239399,-630.46379414,0.0003916,2]
[398967880,1766032239408,-2000.0,0.00039162,15]
[398967881,1766032239417,-1000.0,0.000392,60]
[398967882,1766032239427,-1000.0,0.000392,90]
[398967883,1766032239439,-2000.0,0.00039214,15]
[398967884,1766032239449,-4619.859887,0.00039216,2]
[398967885,1766032239458,-500.0,0.00039216,120]
[398967886,1766032239467,-500.0,0.00039216,10]
[398967887,1766032239476,-500.0,0.00039216,120]
[398967888,1766032239486,-1331.6309743,0.00039216,2]
[398967889,1766032239495,-2010.7739314,0.00039216,2]
[398967890,1766032239504,-18341.4271239,0.00039216,2]
[398967891,1766032239514,-304.3797915,0.00039216,2]
[398967893,1766032239523,-2000.0,0.00039216,15]
[398967895,1766032239532,-2000.0,0.00039216,15]
[398967897,1766032239541,-8071.29366749,0.00039267,60]
[398967899,1766032239551,-150.0,0.00039267,2]
[398967901,1766032239560,-3479.0,0.00039267,120]
[398967902,1766032239568,-500.0,0.00039267,120]
[398967903,1766032239577,-1007.20429749,0.00039267,30]
[398967904,1766032239586,-28690.17339979,0.00039267,30]
[398967905,1766032239595,-6922.22392192,0.00039267,30]
[398967906,1766032239604,-1000.0,0.00039513,2]
[398967907,1766032239613,-1040.2318031,0.00039513,2]
[398967908,1766032239622,-3076.19113627,0.00039731,3]
[398967910,1766032239631,-588.5,0.0004,30]
[398967912,1766032239641,-152.0,0.0004,120]
[398967913,1766032239649,-152.0,0.0004003,14]
[398967915,1766032239778,-152.0,0.0004003,14]
[398967916,1766032239788,-152.0,0.0004003,14]
[398967917,1766032239797,-152.0,0.0004003,14]
[398967919,1766032239806,-152.0,0.0004003,14]
[398967921,1766032239815,-152.0,0.0004003,14]
[398967923,1766032239824,-153.10118843,0.0004003,14]
[398967925,1766032239833,-500.0,0.00040216,120]
[398967927,1766032239842,-502.22066263,0.00040216,10]
[398967929,1766032239851,-360.42099947,0.00040216,120]
[398967931,1766032239860,-11860.02748128,0.00040267,120]
[398967933,1766032239869,-164.69,0.000403,30]
[398967935,1766032239878,-1815.69,0.000403,2]
[398967936,1766032239887,-1273.16,0.00041095,14]
[398967937,1766032239896,-1273.16,0.00041095,14]
[398967938,1766032239905,-1273.16,0.00041095,14]
[398967939,1766032239914,-1273.16,0.00041095,14]
[398967940,1766032239923,-1273.16,0.00041095,14]
[398967941,1766032239932,-1273.16,0.00041095,14]
[398967942,1766032239941,-1273.16,0.00041095,14]
[398967943,1766032239950,-1273.16,0.00041095,14]
[398967944,1766032239959,-745.89008328,0.00041256,3]
[398967945,1766032239968,-200.0,0.0004156,58]
[398967946,1766032239977,-152.0,0.000417,120]
[398967947,1766032239986,-1000.0,0.000422,60]
[398967948,1766032239995,-500.0,0.00043012,120]
[398967949,1766032240004,-607.16467334,0.00043052,7]
[398967950,1766032240013,-500.0,0.00043143,16]
[398967951,1766032240022,-500.0,0.00043143,16]
[398967952,1766032240030,-504.35655416,0.0004338,60]
[398967953,1766032240039,-152.0,0.000434,120]
[398967954,1766032240048,-500.0,0.0004356,120]
[398967955,1766032240057,-1273.16,0.00043789,14]
[398967956,1766032240067,-2000.0,0.000438,120]
[398967957,1766032240076,-151.0,0.000438,12]
[398967958,1766032240085,-1274.94886339,0.00043851,2]
[398967959,1766032240094,-2379.43622334,0.00043851,2]
[398967960,1766032240104,-176.33593919,0.00043851,2]
[398967961,1766032240115,-3717.86909897,0.00043851,2]
[398967962,1766032240124,-487.61638857,0.00043851,2]
[398967963,1766032240133,-500.0,0.00044108,120]
[398967964,1766032240142,-501.62485148,0.00044129,120]
[398967965,1766032240151,-262.27,0.0004413,120]
[398967966,1766032240161,-1273.16,0.00044155,14]
[398967967,1766032240171,-3323.1529115,0.00044156,2]
[398967968,1766032240179,-1273.16,0.00044381,14]
[398967969,1766032240189,-151.0,0.00044382,120]
[398967970,1766032240200,-156.587,0.00044382,120]
[398967971,1766032240210,-162.380719,0.00044382,120]
[398967972,1766032240220,-168.3888056,0.00044382,120]
[398967973,1766032240229,-176.60160931,0.00044382,120]
[398967974,1766032240238,-2000.0,0.00044382,120]
[398967975,1766032240248,-2074.0,0.00044382,120]
[398967976,1766032240257,-1473.13581038,0.00044382,120]
[398967977,1766032240266,-200.0,0.00044382,120]
[398967978,1766032240276,-200.0,0.00044382,120]
[398967979,1766032240285,-200.0,0.00044382,120]
[398967980,1766032240295,-200.0,0.00044382,120]
[398967981,1766032240304,-200.0,0.00044382,120]
[398967982,1766032240313,-250.0,0.00044382,120]
[398967983,1766032240322,-250.0,0.00044382,120]
[398967984,1766032240331,-200.0,0.00044382,120]
[398967985,1766032240340,-250.0,0.00044382,120]
[398967986,1766032240349,-414.0,0.00044382,120]
[398967987,1766032240358,-250.0,0.00044382,120]
[398967988,1766032240368,-429.318,0.00044382,120]
[398967989,1766032240377,-250.0,0.00044382,120]
[398967990,1766032240386,-445.202766,0.00044382,120]
[398967991,1766032240396,-260.30136876,0.00044382,120]
[398967992,1766032240405,-461.67526834,0.00044382,120]
[398967993,1766032240415,-478.75725327,0.00044382,120]
[398967994,1766032240424,-496.47127164,0.00044382,120]
[398967995,1766032240438,-514.84070869,0.00044382,120]
[398967996,1766032240452,-533.88981491,0.00044382,120]
[398967997,1766032240461,-159.41896587,0.00044382,120]
[398967998,1766032240471,-224.0,0.00044383,120]
[398967999,1766032240481,-1030.8300764,0.00044406,2]
[398968000,1766032240491,-4092.5255715,0.00044553,2]
[398968001,1766032240500,-500.0,0.00044656,120]
[398968002,1766032240511,-211.89767642,0.00045,120]
[398968003,1766032240520,-222.63643921,0.00045,120]
[398968004,1766032240529,-152.0,0.000451,120]
[398968005,1766032240538,-375.46836,0.00045104,30]
[398968006,1766032240547,-375.46836,0.00045104,30]
[398968007,1766032240556,-375.46836,0.00045104,30]
[398968008,1766032240565,-375.46836,0.00045104,30]
[398968009,1766032240575,-375.46836,0.00045104,30]
[398968010,1766032240584,-375.46836,0.00045104,30]
[398968011,1766032240592,-375.46836,0.00045104,30]
[398968012,1766032240601,-199.607079,0.00045104,30]
[398968013,1766032240610,-500.0,0.00045204,120]
[398968014,1766032240619,-207.82692557,0.000454,120]
[398968015,1766032240628,-151.0,0.000454,26]
[398968016,1766032240637,-230.00928,0.00045564,2]
[398968017,1766032240646,-164.69,0.000456,30]
[398968018,1766032240655,-637.341,0.00045609,2]
[398968019,1766032240663,-2170.842,0.00045609,2]
[398968020,1766032240672,-1815.69,0.000457,2]
[398968021,1766032240681,-913.1658861,0.00045743,2]
[398968022,1766032240690,-500.0,0.00045752,120]
[398968023,1766032240698,-300.0,0.00046,120]
[398968024,1766032240707,-375.46836,0.00046063,30]
[398968025,1766032240716,-375.46836,0.00046063,30]
[398968026,1766032240725,-375.46836,0.00046063,30]
[398968027,1766032240734,-375.2054948,0.00046063,30]
[398968028,1766032240743,-500.0,0.000463,120]
[398968029,1766032240752,-1273.16,0.00046325,14]
[398968030,1766032240761,-150.104,0.00046336,2]
[398968031,1766032240770,-1000.0,0.0004642,120]
[398968032,1766032240779,-244.0,0.0004642,120]
[398968033,1766032240788,-152.0,0.000468,120]
[398968034,1766032240797,-203.94765286,0.00046841,15]
[398968035,1766032240806,-500.0,0.00046848,120]
[398968036,1766032240815,-1273.16,0.00046848,14]
[398968037,1766032240824,-1273.16,0.00046848,14]
[398968038,1766032240833,-151.0,0.00047,26]
[398968039,1766032240842,-399.48067512,0.00047313,83]
[398968040,1766032240851,-500.0,0.00047396,120]
[398968041,1766032240860,-500.0,0.00047944,120]
[398968042,1766032240869,-300.0,0.00048,120]
[398968043,1766032240878,-2400.0,0.00048,30]
[398968044,1766032240887,-1277.49738117,0.00048398,120]
[398968045,1766032240896,-1255.34472044,0.000484,60]
[398968046,1766032240905,-152.0,0.000484,120]
[398968047,1766032240914,-500.0,0.00048491,120]
[398968048,1766032240923,-45831.87068194,0.00048498,2]
[398968049,1766032240932,-151.0,0.00048498,120]
[398968050,1766032240941,-2059.007443,0.00048498,120]
[398968051,1766032240949,-2059.007443,0.00048498,120]
[398968052,1766032240958,-2059.007443,0.00048498,120]
[398968053,1766032240967,-2059.007443,0.00048498,120]
[398968054,1766032240977,-151.0,0.00048498,120]
[398968055,1766032240986,-151.0,0.00048498,120]
[398968056,1766032240996,-151.0,0.00048498,120]
[398968057,1766032241005,-151.0,0.00048498,120]
[398968058,1766032241014,-151.0,0.00048498,120]
[398968059,1766032241023,-151.0,0.00048498,120]
[398968060,1766032241032,-151.0,0.00048498,120]
[398968061,1766032241042,-151.0,0.00048498,120]
[398968062,1766032241053,-151.0,0.00048498,120]
[398968063,1766032241062,-151.0,0.00048498,120]
[398968064,1766032241073,-1444.97,0.000485,14]
[398968065,1766032241082,-151.0,0.000486,28]
[398968066,1766032241091,-607.16467334,0.0004866,7]
[398968067,1766032241101,-164.69,0.000487,30]
[398968068,1766032241111,-317.40469054,0.00048761,2]
[398968069,1766032241121,-877.70949943,0.00048761,2]
[398968070,1766032241130,-182.0,0.00048767,120]
[398968071,1766032241140,-1815.69,0.000488,2]
[398968072,1766032241149,-2938.0,0.00048805,2]
[398968073,1766032241159,-1273.16,0.00048874,14]
[398968074,1766032241169,-3351.74589891,0.00048875,60]
[398968075,1766032241180,-157.729808,0.00048924,2]
[398968076,1766032241190,-158.14153642,0.00049,120]
[398968077,1766032241202,-500.0,0.00049039,120]
[398968078,1766032241212,-160.0,0.00049466,3]
[398968079,1766032241220,-511.25,0.00049587,120]
[398968080,1766032241230,-741.4956413,0.0005,2]
[398968081,1766032241240,-154.95232341,0.0005,120]
[398968082,1766032241249,-200.0,0.0005,120]
[398968083,1766032241258,-1012.92404813,0.0005,30]
[398968084,1766032241267,-152.0,0.000501,120]
[398968085,1766032241277,-151.0,0.000502,22]
[398968086,1766032241286,-3000.0,0.00051,85]
[398968087,1766032241294,-1444.97,0.00051,14]
[398968088,1766032241303,-3000.0,0.0005101,85]
[398968089,1766032241312,-3000.0,0.0005102,85]
[398968090,1766032241323,-1273.16,0.00051029,30]
[398968091,1766032241333,-3000.0,0.0005103,85]
[398968092,1766032241342,-3000.0,0.0005104,85]
[398968093,1766032241351,-5770.931621,0.0005105,85]
[398968094,1766032241360,-399.48067512,0.00051098,100]
[398968095,1766032241369,-641.86379394,0.00051199,3]
[398968096,1766032241379,-232.1161831,0.00051199,3]
[398968097,1766032241388,-165.4500412,0.00051304,2]
[398968098,1766032241396,-373.333,0.00051621,93]
[398968099,1766032241405,-2000.0,0.000518,120]
[398968100,1766032241414,-151.0,0.000518,21]
[398968101,1766032241423,-152.0,0.000518,120]
[398968102,1766032241432,-1815.69,0.000519,2]
[398968103,1766032241446,-200.0,0.00052,120]
[398968104,1766032241455,-4567.76210841,0.0005234,120]
[398968105,1766032241464,-1273.16,0.00052429,30]
[398968106,1766032241473,-322.71958854,0.0005243,4]
[398968107,1766032241486,-1273.16,0.00052439,30]
[398968108,1766032241495,-1273.16,0.00052439,30]
[398968109,1766032241505,-1273.16,0.00052439,30]
[398968110,1766032241518,-1273.16,0.00052439,30]
[398968111,1766032241527,-1273.16,0.00052439,30]
[398968112,1766032241537,-1273.16,0.00052439,30]
[398968113,1766032241547,-1273.22400383,0.00052439,30]
[398968114,1766032241556,-151.0,0.0005244,120]
[398968115,1766032241565,-151.487886,0.0005244,120]
[398968116,1766032241574,-151.0,0.0005244,120]
[398968117,1766032241583,-151.0,0.0005244,120]
[398968118,1766032241592,-151.0,0.0005244,120]
[398968119,1766032241601,-151.0,0.0005244,120]
[398968120,1766032241610,-151.0,0.0005244,120]
[398968121,1766032241619,-151.0,0.0005244,120]
[398968122,1766032241628,-151.0,0.0005244,120]
[398968123,1766032241637,-270.777275,0.0005244,120]
[398968124,1766032241646,-151.0,0.0005244,30]
[398968125,1766032241655,-151.0,0.0005244,120]
[398968126,1766032241664,-151.0,0.0005244,120]
[398968127,1766032241673,-152.486649,0.0005244,30]
[398968128,1766032241682,-151.0,0.0005244,120]
[398968129,1766032241691,-361542.0046,0.0005244,120]
[398968130,1766032241700,-151.0,0.0005244,120]
[398968131,1766032241709,-151.0,0.0005244,120]
[398968132,1766032241722,-151.0,0.0005244,120]
[398968133,1766032241731,-151.0,0.0005244,120]
[398968134,1766032241740,-151.0,0.0005244,120]
[398968135,1766032241749,-151.0,0.0005244,120]
[398968136,1766032241758,-158.7977144,0.0005244,120]
[398968137,1766032241768,-151.0,0.0005244,120]
[398968138,1766032241777,-151.0,0.0005244,120]
[398968139,1766032241786,-151.0,0.0005244,120]
[398968140,1766032241795,-151.0,0.0005244,120]
[398968141,1766032241804,-151.0,0.0005244,120]
[398968142,1766032241814,-151.0,0.0005244,120]
[398968143,1766032241823,-151.0,0.0005244,120]
[398968144,1766032241832,-151.0,0.0005244,120]
[398968145,1766032241841,-151.0,0.0005244,120]
[398968146,1766032241851,-151.0,0.0005244,120]
[398968147,1766032241859,-151.0,0.0005244,120]
[398968148,1766032241869,-151.0,0.0005244,120]
[398968149,1766032241878,-151.0,0.0005244,120]
[398968150,1766032241888,-151.0,0.0005244,120]
[398968151,1766032241897,-151.0,0.0005244,120]
[398968152,1766032241906,-151.0,0.0005244,120]
[398968153,1766032241915,-151.0,0.0005244,60]
[398968154,1766032241924,-151.476004,0.0005244,120]
[398968155,1766032241934,-166.620744,0.0005244,120]
[398968156,1766032241943,-151.0,0.0005244,120]
[398968157,1766032241952,-151.41469,0.0005244,120]
[398968158,1766032241961,-151.0,0.0005244,120]
[398968159,1766032241970,-151.0,0.0005244,120]
[398968160,1766032241979,-151.0,0.0005244,120]
[398968161,1766032241989,-151.397182,0.0005244,120]
[398968162,1766032241998,-151.591888,0.0005244,120]
[398968163,1766032242007,-151.0,0.0005244,120]
[398968164,1766032242016,-151.0,0.0005244,120]
[398968165,1766032242025,-151.0,0.0005244,120]
[398968166,1766032242035,-151.503896,0.0005244,120]
[398968167,1766032242044,-151.0,0.0005244,120]
[398968168,1766032242053,-151.0,0.0005244,120]
[398968169,1766032242063,-151.0,0.0005244,120]
[398968170,1766032242073,-152.804893,0.0005244,120]
[398968171,1766032242082,-185.512951,0.0005244,120]
[398968172,1766032242091,-151.0,0.0005244,120]
[398968173,1766032242100,-151.0,0.0005244,120]
[398968174,1766032242109,-185.512951,0.0005244,120]
[398968175,1766032242118,-181.585003,0.0005244,120]
[398968176,1766032242127,-151.0,0.0005244,120]
[398968177,1766032242137,-181.585003,0.0005244,120]
[398968178,1766032242146,-151.0,0.0005244,120]
[398968179,1766032242155,-185.512951,0.0005244,120]
[398968180,1766032242164,-181.585003,0.0005244,120]
[398968181,1766032242173,-181.585003,0.0005244,120]
[398968182,1766032242182,-185.512951,0.0005244,120]
[398968183,1766032242191,-181.585003,0.0005244,120]
[398968184,1766032242200,-181.585003,0.0005244,120]
[398968185,1766032242209,-181.585003,0.0005244,120]
[398968186,1766032242218,-181.585003,0.0005244,120]
[398968187,1766032242227,-151.0,0.0005244,7]
[398968188,1766032242236,-279.162392,0.0005244,7]
[398968189,1766032242245,-448.520202,0.0005244,120]
[398968190,1766032242254,-448.520202,0.0005244,120]
[398968191,1766032242263,-448.520202,0.0005244,120]
[398968192,1766032242272,-448.520202,0.0005244,120]
[398968193,1766032242281,-151.0,0.0005244,120]
[398968194,1766032242290,-151.0,0.0005244,120]
[398968195,1766032242299,-151.0,0.0005244,120]
[398968196,1766032242308,-151.0,0.0005244,120]
[398968197,1766032242317,-151.0,0.0005244,120]
[398968198,1766032242327,-151.0,0.0005244,120]
[398968199,1766032242336,-151.0,0.0005244,120]
[398968200,1766032242345,-151.0,0.0005244,120]
[398968201,1766032242354,-167.823515,0.0005244,120]
[398968202,1766032242363,-167.823515,0.0005244,120]
[398968203,1766032242372,-167.823515,0.0005244,120]
[398968204,1766032242381,-167.823515,0.0005244,120]
[398968205,1766032242391,-167.823515,0.0005244,120]
[398968206,1766032242401,-167.823515,0.0005244,120]
[398968207,1766032242410,-151.0,0.0005244,120]
[398968208,1766032242419,-151.0,0.0005244,120]
[398968209,1766032242428,-167.823515,0.0005244,120]
[398968210,1766032242554,-167.823515,0.0005244,120]
[398968211,1766032242564,-151.0,0.0005244,120]
[398968212,1766032242573,-239.62375738,0.0005244,120]
[398968213,1766032242582,-151.0,0.0005244,120]
[398968214,1766032242591,-151.0,0.0005244,120]
[398968215,1766032242600,-151.0,0.0005244,120]
[398968216,1766032242610,-151.0,0.0005244,120]
[398968217,1766032242619,-151.0,0.0005244,120]
[398968218,1766032242627,-151.0,0.0005244,120]
[398968219,1766032242637,-151.0,0.0005244,120]
[398968220,1766032242646,-151.0,0.0005244,120]
[398968221,1766032242655,-151.0,0.0005244,120]
[398968222,1766032242665,-151.0,0.0005244,120]
[398968223,1766032242674,-151.0,0.0005244,120]
[398968224,1766032242683,-153.336106,0.0005244,120]
[398968225,1766032242692,-152.339017,0.0005244,120]
[398968226,1766032242700,-152.339017,0.0005244,120]
[398968227,1766032242709,-152.339017,0.0005244,120]
[398968228,1766032242718,-152.339017,0.0005244,120]
[398968229,1766032242727,-151.0,0.0005244,120]
[398968230,1766032242735,-151.0,0.0005244,120]
[398968231,1766032242745,-152.339017,0.0005244,120]
[398968232,1766032242753,-152.339017,0.0005244,120]
[398968233,1766032242763,-153.126163,0.0005244,120]
[398968234,1766032242772,-151.0,0.0005244,120]
[398968235,1766032242781,-151.0,0.0005244,120]
[398968236,1766032242790,-152.339017,0.0005244,120]
[398968237,1766032242799,-152.339017,0.0005244,120]
[398968238,1766032242808,-151.0,0.0005244,120]
[398968239,1766032242817,-151.0,0.0005244,120]
[398968240,1766032242826,-151.0,0.0005244,120]
[398968241,1766032242834,-185.591029,0.0005244,120]
[398968242,1766032242843,-185.591029,0.0005244,120]
[398968243,1766032242852,-185.591029,0.0005244,120]
[398968244,1766032242860,-185.591029,0.0005244,120]
[398968245,1766032242870,-185.591029,0.0005244,120]
[398968246,1766032242878,-185.591029,0.0005244,120]
[398968247,1766032242888,-185.591029,0.0005244,120]
[398968248,1766032242897,-185.591029,0.0005244,120]
[398968249,1766032242907,-2059.007443,0.0005244,120]
[398968250,1766032242916,-2059.007443,0.0005244,120]
[398968251,1766032242924,-2059.007443,0.0005244,120]
[398968252,1766032242933,-2059.007443,0.0005244,120]
[398968253,1766032242942,-151.373531,0.0005244,120]
[398968254,1766032242950,-151.0,0.0005244,120]
[398968255,1766032242959,-151.0,0.0005244,120]
[398968256,1766032242968,-151.0,0.0005244,120]
[398968257,1766032242977,-152.862405,0.0005244,120]
[398968258,1766032242986,-151.0,0.0005244,120]
[398968259,1766032242994,-151.0,0.0005244,120]
[398968260,1766032243003,-151.0,0.0005244,120]
[398968262,1766032243013,-151.0,0.0005244,120]
[398968264,1766032243022,-164.69,0.000525,30]
[398968265,1766032243032,-160.0,0.00052835,4]
[398968266,1766032243041,-200.0,0.00053,120]
[398968267,1766032243050,-151.0,0.000534,22]
[398968268,1766032243059,-152.0,0.000535,120]
[398968269,1766032243068,-1444.97,0.000535,14]
[398968270,1766032243079,-2000.0,0.000538,120]
[398968271,1766032243088,-3020.25942989,0.00054,120]
[398968272,1766032243097,-200.0,0.00054,120]
[398968273,1766032243107,-19972.0,0.000546,120]
[398968274,1766032243116,-88888.0,0.00054694,120]
[398968275,1766032243125,-500.0,0.00054794,120]
[398968276,1766032243135,-500.0,0.00054794,120]
[398968277,1766032243144,-500.0,0.00054794,120]
[398968278,1766032243153,-500.0,0.00054794,120]
[398968279,1766032243163,-500.0,0.00054794,120]
[398968280,1766032243173,-500.0,0.00054794,120]
[398968281,1766032243183,-500.0,0.00054794,120]
[398968282,1766032243194,-500.0,0.00054794,120]
[398968283,1766032243203,-500.0,0.00054794,120]
[398968284,1766032243213,-500.0,0.00054794,120]
[398968285,1766032243223,-500.0,0.00054794,120]
[398968286,1766032243233,-500.0,0.00054794,120]
[398968287,1766032243244,-500.0,0.00054794,120]
[398968288,1766032243254,-500.0,0.00054794,120]
[398968289,1766032243264,-500.0,0.00054794,120]
[398968290,1766032243273,-500.0,0.00054794,120]
[398968291,1766032243284,-500.0,0.00054794,120]
[398968292,1766032243294,-500.0,0.00054794,120]
[398968293,1766032243307,-500.0,0.00054794,120]
[398968294,1766032243316,-528.13,0.00054794,120]
[398968295,1766032243327,-500.0,0.00054794,120]
[398968296,1766032243339,-502.60196686,0.00054794,120]
[398968297,1766032243350,-151.0,0.00054794,120]
[398968298,1766032243359,-151.0,0.00054794,120]
[398968299,1766032243368,-151.0,0.00054794,120]
[398968300,1766032243377,-500.0,0.00054794,120]
[398968301,1766032243386,-500.0,0.00054794,120]
[398968302,1766032243396,-500.0,0.00054794,120]
[398968303,1766032243405,-500.0,0.00054794,100]
[398968304,1766032243414,-500.0,0.00054794,120]
[398968305,1766032243423,-179.66729622,0.00054794,120]
[398968306,1766032243432,-500.0,0.00054794,120]
[398968307,1766032243444,-500.0,0.00054794,120]
[398968308,1766032243453,-500.0,0.00054794,120]
[398968309,1766032243462,-500.0,0.00054794,120]
[398968310,1766032243471,-500.0,0.00054794,120]
[398968311,1766032243482,-500.0,0.00054794,120]